[Event "December 5 Early 2023"]
[Site "https://www.chess.com"]
[Date "2023.12.05"]
[Round "7"]
[White "Sreyas Payyappat"]
[Black "Abdilkhair, Abilmansur"]
[Result "1-0"]
[Board "123"]
[TimeControl "180+1"]
[WhiteFideId "46674969"]
[BlackFideId "13716417"]
[WhiteElo "2501"]
[BlackElo "1813"]
[WhiteTeam "IND"]
[BlackTeam "KAZ"]
[WhiteClock "0:00:37"]
[BlackClock "0:00:06"]

1. e4 {[%clk 0:03:00]}  c5 {[%clk 0:03:00]} 2. Nf3 {[%clk 0:02:58]}  e6 {[%clk 0:03:00]} 3. d4 {[%clk 0:02:57]}  cxd4 {[%clk 0:03:01]} 4. Nxd4 {[%clk 0:02:58]}  a6 {[%clk 0:03:02]} 5. Nc3 {[%clk 0:02:58]}  Qc7 {[%clk 0:03:00]} 6. Be3 {[%clk 0:02:58]}  Nc6 {[%clk 0:02:59]} 7. Be2 {[%clk 0:02:55]}  Nf6 {[%clk 0:02:58]} 8. O-O {[%clk 0:02:55]}  Bb4 {[%clk 0:02:57]} 9. f3 {[%clk 0:02:48]}  O-O {[%clk 0:02:53]} 10. Bd3 {[%clk 0:02:47]}  Ne5 {[%clk 0:02:34]} 11. Nce2 {[%clk 0:02:43]}  Nxd3 {[%clk 0:02:32]} 12. Qxd3 {[%clk 0:02:44]}  b6 {[%clk 0:02:23]} 13. c3 {[%clk 0:02:34]}  Be7 {[%clk 0:02:22]} 14. Bf4 {[%clk 0:02:26]}  d6 {[%clk 0:02:20]} 15. Bg3 {[%clk 0:02:20]}  Bb7 {[%clk 0:02:15]} 16. Rad1 {[%clk 0:02:19]}  Rfd8 {[%clk 0:02:14]} 17. Kh1 {[%clk 0:02:11]}  Rac8 {[%clk 0:02:09]} 18. Nc2 {[%clk 0:02:04]}  b5 {[%clk 0:01:25]} 19. Ne3 {[%clk 0:01:58]}  Qa5 {[%clk 0:01:19]} 20. a3 {[%clk 0:01:56]}  Bf8 {[%clk 0:01:16]} 21. Ng4 {[%clk 0:01:35]}  Nh5 {[%clk 0:01:13]} 22. f4 {[%clk 0:01:28]}  Rc4 {[%clk 0:01:03]} 23. Nd4 {[%clk 0:01:19]}  Nxg3+ {[%clk 0:00:56]} 24. Qxg3 {[%clk 0:01:20]}  Bxe4 {[%clk 0:00:53]} 25. Nf6+ {[%clk 0:01:18]}  Kh8 {[%clk 0:00:37]} 26. Nxe4 {[%clk 0:01:19]}  d5 {[%clk 0:00:35]} 27. Ng5 {[%clk 0:01:19]}  Rc7 {[%clk 0:00:33]} 28. f5 {[%clk 0:01:11]}  e5 {[%clk 0:00:33]} 29. Ndf3 {[%clk 0:00:49]}  h6 {[%clk 0:00:28]} 30. Nxe5 {[%clk 0:00:40]}  hxg5 {[%clk 0:00:27]} 31. Ng6+ {[%clk 0:00:38]}  Kg8 {[%clk 0:00:06]} 32. Qh3 {[%clk 0:00:37]} 1-0

[Event "December 5 Early 2023"]
[Site "https://www.chess.com"]
[Date "2023.12.05"]
[Round "7"]
[White "Barbot, Pierre"]
[Black "Baziuk, Vladyslav"]
[Result "0-1"]
[Board "128"]
[TimeControl "180+1"]
[WhiteFideId "663727"]
[BlackFideId "34107940"]
[WhiteElo "2319"]
[BlackElo "2524"]
[WhiteTeam "FRA"]
[BlackTeam "UKR"]
[WhiteClock "0:00:00"]
[BlackClock "0:00:05"]

1. e4 {[%clk 0:03:00]}  c5 {[%clk 0:02:11]} 2. Nc3 {[%clk 0:02:59]}  d6 {[%clk 0:02:11]} 3. Bb5+ {[%clk 0:02:27]}  Bd7 {[%clk 0:02:11]} 4. Bxd7+ {[%clk 0:02:26]}  Qxd7 {[%clk 0:02:11]} 5. Nge2 {[%clk 0:02:25]}  Nc6 {[%clk 0:02:10]} 6. O-O {[%clk 0:02:11]}  g6 {[%clk 0:02:10]} 7. d4 {[%clk 0:02:06]}  cxd4 {[%clk 0:02:10]} 8. Nxd4 {[%clk 0:02:04]}  Bg7 {[%clk 0:02:10]} 9. Nxc6 {[%clk 0:01:54]}  bxc6 {[%clk 0:02:11]} 10. Be3 {[%clk 0:01:53]}  Nf6 {[%clk 0:02:09]} 11. f3 {[%clk 0:01:51]}  O-O {[%clk 0:02:09]} 12. Qd2 {[%clk 0:01:49]}  Rab8 {[%clk 0:02:09]} 13. Rab1 {[%clk 0:01:46]}  Rfc8 {[%clk 0:02:01]} 14. Ne2 {[%clk 0:01:41]}  c5 {[%clk 0:01:53]} 15. c3 {[%clk 0:01:35]}  a5 {[%clk 0:01:32]} 16. Bh6 {[%clk 0:01:18]}  a4 {[%clk 0:01:31]} 17. Ng3 {[%clk 0:01:10]}  Qe6 {[%clk 0:01:21]} 18. a3 {[%clk 0:00:53]}  Rb3 {[%clk 0:01:19]} 19. Qg5 {[%clk 0:00:53]}  Rcb8 {[%clk 0:01:15]} 20. Rf2 {[%clk 0:00:33]}  Rxa3 {[%clk 0:01:10]} 21. Nf5 {[%clk 0:00:25]}  Bxh6 {[%clk 0:00:59]} 22. Nxh6+ {[%clk 0:00:26]}  Kh8 {[%clk 0:00:53]} 23. e5 {[%clk 0:00:19]}  dxe5 {[%clk 0:00:51]} 24. Re1 {[%clk 0:00:18]}  Ra2 {[%clk 0:00:39]} 25. Rfe2 {[%clk 0:00:17]}  Rbxb2 {[%clk 0:00:36]} 26. Rxe5 {[%clk 0:00:17]}  Rxg2+ {[%clk 0:00:32]} 27. Qxg2 {[%clk 0:00:17]}  Rxg2+ {[%clk 0:00:33]} 28. Kxg2 {[%clk 0:00:18]}  Qc4 {[%clk 0:00:33]} 29. Rxe7 {[%clk 0:00:16]}  Kg7 {[%clk 0:00:25]} 30. Nxf7 {[%clk 0:00:16]}  Qxc3 {[%clk 0:00:20]} 31. Nd6+ {[%clk 0:00:09]}  Kh6 {[%clk 0:00:19]} 32. Nf7+ {[%clk 0:00:07]}  Kh5 {[%clk 0:00:09]} 33. R7e5+ {[%clk 0:00:06]}  Kh4 {[%clk 0:00:08]} 34. Ng5 {[%clk 0:00:03]}  Qd2+ {[%clk 0:00:06]} 35. R1e2 {[%clk 0:00:02]}  Qf4 {[%clk 0:00:04]} 36. R5e4 {[%clk 0:00:02]}  Nxe4 {[%clk 0:00:03]} 37. Rxe4 {[%clk 0:00:02]}  Kxg5 {[%clk 0:00:04]} 38. Rxf4 {[%clk 0:00:00]}  Kxf4 {[%clk 0:00:05]} 0-1

[Event "December 5 Early 2023"]
[Site "https://www.chess.com"]
[Date "2023.12.05"]
[Round "7"]
[White "Derjabin, Ilja"]
[Black "Shubhi Gupta"]
[Result "1-0"]
[Board "129"]
[TimeControl "180+1"]
[WhiteFideId "14104768"]
[BlackFideId "25195425"]
[WhiteElo "2516"]
[BlackElo "2300"]
[WhiteTeam "UKR"]
[BlackTeam "IND"]
[WhiteClock "0:00:12"]
[BlackClock "0:00:00"]

1. d4 {[%clk 0:02:59]}  d5 {[%clk 0:02:57]} 2. c4 {[%clk 0:02:59]}  e6 {[%clk 0:02:57]} 3. Nc3 {[%clk 0:02:59]}  Nf6 {[%clk 0:02:57]} 4. cxd5 {[%clk 0:02:59]}  exd5 {[%clk 0:02:57]} 5. Bg5 {[%clk 0:02:59]}  Bb4 {[%clk 0:02:58]} 6. e3 {[%clk 0:02:59]}  O-O {[%clk 0:02:57]} 7. Bd3 {[%clk 0:02:59]}  h6 {[%clk 0:02:57]} 8. Bh4 {[%clk 0:02:58]}  c6 {[%clk 0:02:56]} 9. Ne2 {[%clk 0:02:58]}  Be6 {[%clk 0:02:52]} 10. O-O {[%clk 0:02:57]}  Nbd7 {[%clk 0:02:49]} 11. Nf4 {[%clk 0:02:56]}  g5 {[%clk 0:02:43]} 12. Nxe6 {[%clk 0:02:55]}  fxe6 {[%clk 0:02:44]} 13. Bg3 {[%clk 0:02:56]}  Qe7 {[%clk 0:02:40]} 14. f4 {[%clk 0:02:47]}  g4 {[%clk 0:02:30]} 15. Bh4 {[%clk 0:02:46]}  h5 {[%clk 0:02:28]} 16. Bg5 {[%clk 0:02:36]}  Qg7 {[%clk 0:02:20]} 17. Qb3 {[%clk 0:02:28]}  c5 {[%clk 0:01:41]} 18. dxc5 {[%clk 0:01:43]}  Bxc5 {[%clk 0:01:42]} 19. Rae1 {[%clk 0:01:39]}  Bb6 {[%clk 0:01:33]} 20. Na4 {[%clk 0:01:33]}  Nc5 {[%clk 0:01:29]} 21. Nxc5 {[%clk 0:01:32]}  Bxc5 {[%clk 0:01:29]} 22. Kh1 {[%clk 0:01:32]}  Rac8 {[%clk 0:01:27]} 23. Bh4 {[%clk 0:01:10]}  Qd7 {[%clk 0:01:07]} 24. Bxf6 {[%clk 0:00:45]}  Rxf6 {[%clk 0:01:07]} 25. Bb1 {[%clk 0:00:45]}  Rcf8 {[%clk 0:01:04]} 26. Qd3 {[%clk 0:00:44]}  Bb6 {[%clk 0:01:03]} 27. Rc1 {[%clk 0:00:42]}  Qf7 {[%clk 0:00:49]} 28. g3 {[%clk 0:00:40]}  e5 {[%clk 0:00:48]} 29. Rfd1 {[%clk 0:00:39]}  d4 {[%clk 0:00:38]} 30. Bc2 {[%clk 0:00:31]}  Kh8 {[%clk 0:00:24]} 31. Bb3 {[%clk 0:00:25]}  Qe7 {[%clk 0:00:22]} 32. exd4 {[%clk 0:00:17]}  exd4 {[%clk 0:00:22]} 33. Re1 {[%clk 0:00:16]}  Qd7 {[%clk 0:00:21]} 34. Re5 {[%clk 0:00:16]}  Rf5 {[%clk 0:00:20]} 35. Rce1 {[%clk 0:00:16]}  Qc6+ {[%clk 0:00:18]} 36. Kg1 {[%clk 0:00:15]}  Rxe5 {[%clk 0:00:14]} 37. Rxe5 {[%clk 0:00:16]}  Qc1+ {[%clk 0:00:15]} 38. Kg2 {[%clk 0:00:13]}  Qxb2+ {[%clk 0:00:11]} 39. Bc2 {[%clk 0:00:12]}  Rf7 {[%clk 0:00:00]} 40. Re8+ {[%clk 0:00:12]} 1-0

[Event "December 5 Early 2023"]
[Site "https://www.chess.com"]
[Date "2023.12.05"]
[Round "7"]
[White "Eugene, Floryan"]
[Black "Cardozo Munar, Carlos Eduardo"]
[Result "1-0"]
[Board "130"]
[TimeControl "180+1"]
[WhiteFideId "20694784"]
[BlackFideId "4409477"]
[WhiteElo "2514"]
[BlackElo "2287"]
[WhiteTeam "FRA"]
[BlackTeam "COL"]
[WhiteClock "0:00:44"]
[BlackClock "0:00:32"]

1. d4 {[%clk 0:03:00]}  d5 {[%clk 0:02:58]} 2. c4 {[%clk 0:03:00]}  e5 {[%clk 0:02:59]} 3. dxe5 {[%clk 0:03:00]}  d4 {[%clk 0:02:59]} 4. Nf3 {[%clk 0:02:58]}  Nc6 {[%clk 0:02:58]} 5. g3 {[%clk 0:02:55]}  Nge7 {[%clk 0:02:58]} 6. Bg2 {[%clk 0:02:55]}  Ng6 {[%clk 0:02:58]} 7. O-O {[%clk 0:02:55]}  Ngxe5 {[%clk 0:02:55]} 8. Nxe5 {[%clk 0:02:52]}  Nxe5 {[%clk 0:02:55]} 9. b3 {[%clk 0:02:48]}  c5 {[%clk 0:02:39]} 10. Nd2 {[%clk 0:02:38]}  Be7 {[%clk 0:02:34]} 11. Bb2 {[%clk 0:02:34]}  O-O {[%clk 0:02:34]} 12. e3 {[%clk 0:02:24]}  Nd3 {[%clk 0:02:26]} 13. Ba3 {[%clk 0:02:15]}  dxe3 {[%clk 0:02:24]} 14. fxe3 {[%clk 0:02:16]}  Bf6 {[%clk 0:02:03]} 15. Rb1 {[%clk 0:02:15]}  Re8 {[%clk 0:02:00]} 16. Ne4 {[%clk 0:02:11]}  Be7 {[%clk 0:01:22]} 17. Qe2 {[%clk 0:01:56]}  Nb4 {[%clk 0:01:20]} 18. Rbd1 {[%clk 0:01:54]}  Qc7 {[%clk 0:01:19]} 19. Bb2 {[%clk 0:01:37]}  Be6 {[%clk 0:01:17]} 20. a3 {[%clk 0:01:03]}  Nc6 {[%clk 0:01:08]} 21. Qc2 {[%clk 0:01:01]}  Rad8 {[%clk 0:01:07]} 22. Qc3 {[%clk 0:01:01]}  f6 {[%clk 0:01:01]} 23. Qc2 {[%clk 0:00:54]}  Rxd1 {[%clk 0:00:55]} 24. Rxd1 {[%clk 0:00:50]}  Rd8 {[%clk 0:00:56]} 25. Nc3 {[%clk 0:00:48]}  Rxd1+ {[%clk 0:00:54]} 26. Qxd1 {[%clk 0:00:49]}  b6 {[%clk 0:00:49]} 27. Nd5 {[%clk 0:00:48]}  Bf8 {[%clk 0:00:32]} 28. Nxc7 {[%clk 0:00:44]} 1-0

[Event "December 5 Early 2023"]
[Site "https://www.chess.com"]
[Date "2023.12.05"]
[Round "7"]
[White "Kotyk, Michael"]
[Black "Vorons, Uldis"]
[Result "1-0"]
[Board "131"]
[TimeControl "180+1"]
[WhiteFideId "16214501"]
[BlackFideId "11611758"]
[WhiteElo "2513"]
[BlackElo "2285"]
[WhiteTeam "GER"]
[BlackTeam "LAT"]
[WhiteClock "0:00:04"]
[BlackClock "0:00:00"]

1. e4 {[%clk 0:01:37]}  e5 {[%clk 0:02:41]} 2. Nc3 {[%clk 0:01:32]}  Nf6 {[%clk 0:02:36]} 3. f4 {[%clk 0:01:32]}  d5 {[%clk 0:02:36]} 4. fxe5 {[%clk 0:01:32]}  Nxe4 {[%clk 0:02:35]} 5. Nf3 {[%clk 0:01:33]}  Nc6 {[%clk 0:02:34]} 6. Bb5 {[%clk 0:01:26]}  Bd7 {[%clk 0:02:13]} 7. Qe2 {[%clk 0:01:19]}  Nxc3 {[%clk 0:02:11]} 8. dxc3 {[%clk 0:01:20]}  Bc5 {[%clk 0:02:10]} 9. Bg5 {[%clk 0:01:17]}  Be7 {[%clk 0:02:10]} 10. Bf4 {[%clk 0:01:15]}  g5 {[%clk 0:02:09]} 11. Bg3 {[%clk 0:01:11]}  g4 {[%clk 0:02:08]} 12. Nd4 {[%clk 0:01:03]}  Nxd4 {[%clk 0:02:06]} 13. cxd4 {[%clk 0:01:04]}  c6 {[%clk 0:02:03]} 14. Bd3 {[%clk 0:01:03]}  Qb6 {[%clk 0:02:00]} 15. c3 {[%clk 0:01:03]}  O-O-O {[%clk 0:02:00]} 16. O-O {[%clk 0:01:02]}  Be6 {[%clk 0:01:56]} 17. b4 {[%clk 0:00:57]}  h5 {[%clk 0:01:53]} 18. a4 {[%clk 0:00:50]}  h4 {[%clk 0:01:53]} 19. Bf4 {[%clk 0:00:50]}  Qc7 {[%clk 0:01:29]} 20. a5 {[%clk 0:00:45]}  a6 {[%clk 0:01:29]} 21. Bd2 {[%clk 0:00:39]}  Rde8 {[%clk 0:01:18]} 22. Bf5 {[%clk 0:00:38]}  Bxf5 {[%clk 0:01:02]} 23. Rxf5 {[%clk 0:00:37]}  Qd7 {[%clk 0:01:02]} 24. Rxf7 {[%clk 0:00:36]}  Qe6 {[%clk 0:01:01]} 25. Raf1 {[%clk 0:00:35]}  Ref8 {[%clk 0:00:41]} 26. Qf2 {[%clk 0:00:32]}  Kd7 {[%clk 0:00:37]} 27. Bg5 {[%clk 0:00:21]}  g3 {[%clk 0:00:31]} 28. Qf6 {[%clk 0:00:16]}  Qxf6 {[%clk 0:00:12]} 29. R1xf6 {[%clk 0:00:13]}  gxh2+ {[%clk 0:00:03]} 30. Kxh2 {[%clk 0:00:13]}  Rhg8 {[%clk 0:00:02]} 31. Rd6+ {[%clk 0:00:08]}  Kc8 {[%clk 0:00:01]} 32. Rxe7 {[%clk 0:00:07]}  Rxg5 {[%clk 0:00:01]} 33. Rdd7 {[%clk 0:00:07]}  Rf2 {[%clk 0:00:01]} 34. Rc7+ {[%clk 0:00:07]}  Kd8 {[%clk 0:00:01]} 35. Red7+ {[%clk 0:00:07]}  Ke8 {[%clk 0:00:01]} 36. Re7+ {[%clk 0:00:05]}  Kf8 {[%clk 0:00:01]} 37. Rh7 {[%clk 0:00:03]}  Rgxg2+ {[%clk 0:00:00]} 38. Kh3 {[%clk 0:00:04]} 1-0

[Event "December 5 Early 2023"]
[Site "https://www.chess.com"]
[Date "2023.12.05"]
[Round "7"]
[White "De Souza, Cristiano Gomes"]
[Black "Senft, Sean"]
[Result "0-1"]
[Board "132"]
[TimeControl "180+1"]
[WhiteFideId "2151758"]
[BlackFideId "2044960"]
[WhiteElo "2276"]
[BlackElo "2491"]
[WhiteTeam "BRA"]
[BlackTeam "USA"]
[WhiteClock "0:00:00"]
[BlackClock "0:00:09"]

1. d4 {[%clk 0:03:00]}  d5 {[%clk 0:02:59]} 2. c4 {[%clk 0:03:00]}  c6 {[%clk 0:03:00]} 3. Nf3 {[%clk 0:02:59]}  Nf6 {[%clk 0:03:00]} 4. Nc3 {[%clk 0:02:59]}  a6 {[%clk 0:02:58]} 5. Bg5 {[%clk 0:02:56]}  Ne4 {[%clk 0:02:51]} 6. Bh4 {[%clk 0:02:55]}  Nxc3 {[%clk 0:02:44]} 7. bxc3 {[%clk 0:02:54]}  g6 {[%clk 0:02:44]} 8. e3 {[%clk 0:02:52]}  Bg7 {[%clk 0:02:44]} 9. c5 {[%clk 0:02:51]}  O-O {[%clk 0:02:45]} 10. Rb1 {[%clk 0:02:49]}  Nd7 {[%clk 0:02:32]} 11. Bd3 {[%clk 0:02:44]}  Qe8 {[%clk 0:02:23]} 12. O-O {[%clk 0:02:42]}  e5 {[%clk 0:02:22]} 13. e4 {[%clk 0:02:14]}  exd4 {[%clk 0:02:21]} 14. exd5 {[%clk 0:02:11]}  dxc3 {[%clk 0:02:20]} 15. dxc6 {[%clk 0:02:11]}  bxc6 {[%clk 0:02:19]} 16. Re1 {[%clk 0:02:11]}  Ne5 {[%clk 0:02:17]} 17. Nxe5 {[%clk 0:02:07]}  Bxe5 {[%clk 0:02:18]} 18. Bf6 {[%clk 0:02:04]}  Bxf6 {[%clk 0:02:15]} 19. Rxe8 {[%clk 0:02:03]}  Rxe8 {[%clk 0:02:16]} 20. Qc2 {[%clk 0:01:57]}  Be6 {[%clk 0:02:13]} 21. h3 {[%clk 0:01:54]}  Rab8 {[%clk 0:02:08]} 22. Rb6 {[%clk 0:01:50]}  Rxb6 {[%clk 0:02:08]} 23. cxb6 {[%clk 0:01:50]}  Rb8 {[%clk 0:02:08]} 24. Bxa6 {[%clk 0:01:45]}  Rxb6 {[%clk 0:02:06]} 25. Bd3 {[%clk 0:01:44]}  Rb2 {[%clk 0:01:56]} 26. Qa4 {[%clk 0:01:43]}  Rxa2 {[%clk 0:01:54]} 27. Qxc6 {[%clk 0:01:42]}  Bd4 {[%clk 0:01:44]} 28. Kh2 {[%clk 0:01:36]}  Rxf2 {[%clk 0:01:42]} 29. Be4 {[%clk 0:01:32]}  Rf1 {[%clk 0:01:19]} 30. Qa8+ {[%clk 0:01:09]}  Kg7 {[%clk 0:01:19]} 31. g3 {[%clk 0:00:41]}  c2 {[%clk 0:00:59]} 32. Bxc2 {[%clk 0:00:34]}  Rf2+ {[%clk 0:00:59]} 33. Kh1 {[%clk 0:00:34]}  Rxc2 {[%clk 0:01:00]} 34. Qe4 {[%clk 0:00:28]}  Rd2 {[%clk 0:00:45]} 35. g4 {[%clk 0:00:21]}  Bf6 {[%clk 0:00:21]} 36. Kg1 {[%clk 0:00:18]}  Rd4 {[%clk 0:00:18]} 37. Qe3 {[%clk 0:00:16]}  Ra4 {[%clk 0:00:16]} 38. Kf1 {[%clk 0:00:13]}  Bc4+ {[%clk 0:00:16]} 39. Kg2 {[%clk 0:00:13]}  Bd5+ {[%clk 0:00:16]} 40. Kf1 {[%clk 0:00:12]}  Be6 {[%clk 0:00:11]} 41. g5 {[%clk 0:00:08]}  Be7 {[%clk 0:00:11]} 42. Qe5+ {[%clk 0:00:07]}  Kg8 {[%clk 0:00:09]} 43. Qb8+ {[%clk 0:00:06]}  Bf8 {[%clk 0:00:10]} 44. Qe5 {[%clk 0:00:05]}  Bxh3+ {[%clk 0:00:09]} 45. Ke2 {[%clk 0:00:04]}  Be6 {[%clk 0:00:10]} 46. Kd2 {[%clk 0:00:04]}  Rg4 {[%clk 0:00:09]} 47. Ke3 {[%clk 0:00:03]}  Ra4 {[%clk 0:00:09]} 48. Kf3 {[%clk 0:00:01]}  Ra3+ {[%clk 0:00:09]} 49. Ke2 {[%clk 0:00:01]}  Ra2+ {[%clk 0:00:09]} 50. Kd3 {[%clk 0:00:00]}  Rf2 {[%clk 0:00:09]} 0-1

[Event "December 5 Early 2023"]
[Site "https://www.chess.com"]
[Date "2023.12.05"]
[Round "7"]
[White "Martin, Lewis"]
[Black "Bold, Andre"]
[Result "0-1"]
[Board "133"]
[TimeControl "180+1"]
[WhiteFideId "410551"]
[BlackFideId "16208471"]
[WhiteElo "2274"]
[BlackElo "2486"]
[WhiteTeam "ENG"]
[BlackTeam "GER"]
[WhiteClock "0:00:00"]
[BlackClock "0:00:05"]

1. c4 {[%clk 0:03:00]}  c6 {[%clk 0:02:53]} 2. g3 {[%clk 0:03:00]}  d5 {[%clk 0:02:54]} 3. cxd5 {[%clk 0:02:56]}  cxd5 {[%clk 0:02:54]} 4. Bg2 {[%clk 0:02:57]}  Nf6 {[%clk 0:02:52]} 5. Nf3 {[%clk 0:02:56]}  Nc6 {[%clk 0:02:51]} 6. O-O {[%clk 0:02:56]}  Bf5 {[%clk 0:02:47]} 7. d4 {[%clk 0:02:51]}  e6 {[%clk 0:02:47]} 8. Bf4 {[%clk 0:02:47]}  Bd6 {[%clk 0:02:46]} 9. Nc3 {[%clk 0:02:44]}  Bxf4 {[%clk 0:02:43]} 10. gxf4 {[%clk 0:02:44]}  Qd6 {[%clk 0:02:44]} 11. Ne5 {[%clk 0:02:42]}  O-O {[%clk 0:02:42]} 12. e3 {[%clk 0:02:37]}  Qb4 {[%clk 0:02:30]} 13. Qd2 {[%clk 0:02:28]}  Rac8 {[%clk 0:02:26]} 14. Rfc1 {[%clk 0:02:20]}  h6 {[%clk 0:02:24]} 15. a3 {[%clk 0:02:19]}  Qa5 {[%clk 0:02:14]} 16. b4 {[%clk 0:02:19]}  Qd8 {[%clk 0:02:11]} 17. b5 {[%clk 0:02:12]}  Na5 {[%clk 0:02:03]} 18. Qb2 {[%clk 0:02:03]}  Nd7 {[%clk 0:01:59]} 19. Na4 {[%clk 0:01:56]}  Nxe5 {[%clk 0:01:54]} 20. Rxc8 {[%clk 0:01:51]}  Qxc8 {[%clk 0:01:52]} 21. fxe5 {[%clk 0:01:48]}  Nc4 {[%clk 0:01:52]} 22. Qb4 {[%clk 0:01:47]}  Qd8 {[%clk 0:01:49]} 23. Nc5 {[%clk 0:01:39]}  Qg5 {[%clk 0:01:46]} 24. Kh1 {[%clk 0:01:15]}  b6 {[%clk 0:01:44]} 25. Nb7 {[%clk 0:01:07]}  Qh4 {[%clk 0:01:29]} 26. Rf1 {[%clk 0:00:58]}  Be4 {[%clk 0:01:27]} 27. f3 {[%clk 0:00:53]}  Nxe3 {[%clk 0:01:21]} 28. fxe4 {[%clk 0:00:53]}  Nxf1 {[%clk 0:01:21]} 29. Bxf1 {[%clk 0:00:53]}  Qxe4+ {[%clk 0:01:21]} 30. Kg1 {[%clk 0:00:53]}  Qe3+ {[%clk 0:01:18]} 31. Kg2 {[%clk 0:00:52]}  Rc8 {[%clk 0:01:17]} 32. Qb2 {[%clk 0:00:49]}  Rc3 {[%clk 0:01:12]} 33. a4 {[%clk 0:00:46]}  Qxd4 {[%clk 0:01:06]} 34. Qe2 {[%clk 0:00:39]}  Rb3 {[%clk 0:00:59]} 35. Qe1 {[%clk 0:00:18]}  Rb2+ {[%clk 0:00:59]} 36. Kh1 {[%clk 0:00:18]}  Qf4 {[%clk 0:00:54]} 37. Bg2 {[%clk 0:00:15]}  d4 {[%clk 0:00:47]} 38. Nd6 {[%clk 0:00:15]}  d3 {[%clk 0:00:40]} 39. Ne4 {[%clk 0:00:13]}  d2 {[%clk 0:00:36]} 40. Qd1 {[%clk 0:00:13]}  Qe3 {[%clk 0:00:28]} 41. Bf3 {[%clk 0:00:10]}  g5 {[%clk 0:00:13]} 42. Kg2 {[%clk 0:00:09]}  Kg7 {[%clk 0:00:12]} 43. h3 {[%clk 0:00:09]}  Qe1 {[%clk 0:00:12]} 44. Be2 {[%clk 0:00:06]}  Rb1 {[%clk 0:00:12]} 45. Qxd2 {[%clk 0:00:04]}  Qg1+ {[%clk 0:00:10]} 46. Kf3 {[%clk 0:00:04]}  Qh1+ {[%clk 0:00:10]} 47. Ke3 {[%clk 0:00:04]}  Rb3+ {[%clk 0:00:10]} 48. Kd4 {[%clk 0:00:05]}  Qg1+ {[%clk 0:00:10]} 49. Kc4 {[%clk 0:00:04]}  Ra3 {[%clk 0:00:08]} 50. Kb4 {[%clk 0:00:03]}  Rxh3 {[%clk 0:00:08]} 51. Bd3 {[%clk 0:00:03]}  Rh2 {[%clk 0:00:07]} 52. Qc3 {[%clk 0:00:03]}  Qg2 {[%clk 0:00:04]} 53. a5 {[%clk 0:00:03]}  Qb2+ {[%clk 0:00:04]} 54. Qxb2 {[%clk 0:00:02]}  Rxb2+ {[%clk 0:00:05]} 55. Kc3 {[%clk 0:00:02]}  Rh2 {[%clk 0:00:04]} 56. axb6 {[%clk 0:00:03]}  axb6 {[%clk 0:00:04]} 57. Nd6 {[%clk 0:00:03]}  g4 {[%clk 0:00:05]} 58. Be4 {[%clk 0:00:03]}  g3 {[%clk 0:00:05]} 59. Nc4 {[%clk 0:00:03]}  g2 {[%clk 0:00:05]} 60. Bxg2 {[%clk 0:00:03]}  Rxg2 {[%clk 0:00:06]} 61. Nxb6 {[%clk 0:00:03]}  h5 {[%clk 0:00:07]} 62. Nd7 {[%clk 0:00:03]}  h4 {[%clk 0:00:07]} 63. b6 {[%clk 0:00:03]}  Rg1 {[%clk 0:00:07]} 64. Kb2 {[%clk 0:00:02]}  Rg4 {[%clk 0:00:06]} 65. Kb3 {[%clk 0:00:01]}  Rg3+ {[%clk 0:00:06]} 66. Kb2 {[%clk 0:00:01]}  h3 {[%clk 0:00:05]} 67. b7 {[%clk 0:00:00]}  Rg2+ {[%clk 0:00:05]} 0-1

[Event "December 5 Early 2023"]
[Site "https://www.chess.com"]
[Date "2023.12.05"]
[Round "7"]
[White "Kovalevsky, Stanislav"]
[Black "Ernst, Luca"]
[Result "1-0"]
[Board "135"]
[TimeControl "180+1"]
[WhiteFideId "13508598"]
[BlackFideId "45117055"]
[WhiteElo "2481"]
[BlackElo "2269"]
[WhiteTeam "FID"]
[BlackTeam "FRA"]
[WhiteClock "0:02:11"]
[BlackClock "0:01:04"]

1. e4 {[%clk 0:03:00]}  c5 {[%clk 0:02:57]} 2. c3 {[%clk 0:03:00]}  Nf6 {[%clk 0:02:56]} 3. e5 {[%clk 0:03:01]}  Nd5 {[%clk 0:02:57]} 4. Nf3 {[%clk 0:03:00]}  Nc6 {[%clk 0:02:57]} 5. d4 {[%clk 0:03:01]}  cxd4 {[%clk 0:02:57]} 6. Bc4 {[%clk 0:03:01]}  Nb6 {[%clk 0:02:55]} 7. Bb3 {[%clk 0:03:01]}  d6 {[%clk 0:02:53]} 8. exd6 {[%clk 0:02:51]}  Qxd6 {[%clk 0:02:35]} 9. cxd4 {[%clk 0:02:51]}  e6 {[%clk 0:02:24]} 10. O-O {[%clk 0:02:50]}  Be7 {[%clk 0:02:23]} 11. Nc3 {[%clk 0:02:50]}  O-O {[%clk 0:02:06]} 12. Ne4 {[%clk 0:02:46]}  Qd8 {[%clk 0:01:49]} 13. Bg5 {[%clk 0:02:43]}  Bxg5 {[%clk 0:01:35]} 14. Nexg5 {[%clk 0:02:25]}  h6 {[%clk 0:01:27]} 15. Ne4 {[%clk 0:02:23]}  Nd5 {[%clk 0:01:25]} 16. a3 {[%clk 0:02:15]}  b6 {[%clk 0:01:24]} 17. Qd3 {[%clk 0:02:14]}  Bb7 {[%clk 0:01:14]} 18. Bc2 {[%clk 0:02:12]}  Nf4 {[%clk 0:01:10]} 19. Nf6+ {[%clk 0:02:10]}  Qxf6 {[%clk 0:01:04]} 20. Qh7# {[%clk 0:02:11]} 1-0